fUST/lending_fUST_20250425
["ID","MTS","AMOUNT","RATE_DAILY","PERIOD"]
[358943917,1745575852719,-153.169958,0.00017534,2]
[358943918,1745575852728,-508.67,0.00017534,2]
[358943919,1745575852737,-151.0,0.00017534,2]
[358943920,1745575852746,-503.55,0.00017534,2]
[358943921,1745575852755,-283.81,0.00017534,2]
[358943922,1745575852764,-169.923029,0.00017534,2]
[358943923,1745575852774,-169.923029,0.00017534,2]
[358943924,1745575852784,-151.0,0.00017534,2]
[358943925,1745575852793,-532.52,0.00017534,2]
[358943926,1745575852803,-639.6,0.00017534,2]
[358943927,1745575852812,-500.0,0.00017534,2]
[358943928,1745575852821,-225.48014378,0.00017534,2]
[358943929,1745575852830,-554.63,0.00017534,2]
[358943930,1745575852839,-643.11,0.00017534,2]
[358943931,1745575852848,-1042.26,0.00017534,2]
[358943932,1745575852858,-500.0,0.00017534,2]
[358943933,1745575852867,-733.9,0.00017534,2]
[358943934,1745575852876,-841.7,0.00017534,2]
[358943935,1745575852886,-500.0,0.00017534,2]
[358943936,1745575852897,-1415.79,0.00017534,2]
[358943937,1745575852906,-500.0,0.00017534,2]
[358943938,1745575852915,-198.011623,0.00017534,2]
[358943939,1745575852926,-198.011623,0.00017534,2]
[358943940,1745575853037,-3702.83,0.00017534,2]
[358943941,1745575853047,-572.24,0.00017534,2]
[358943942,1745575853057,-3273.42,0.00017534,2]
[358943943,1745575853067,-905.532784,0.00017534,2]
[358943944,1745575853076,-905.532784,0.00017534,2]
[358943945,1745575853086,-1019.41,0.00017534,2]
[358943946,1745575853097,-500.0,0.00017534,2]
[358943947,1745575853107,-500.0,0.00017534,2]
[358943948,1745575853116,-746.25,0.00017534,2]
[358943949,1745575853126,-622.31,0.00017534,2]
[358943950,1745575853135,-685.53,0.00017534,2]
[358943951,1745575853145,-500.0,0.00017534,2]
[358943952,1745575853155,-1388.5,0.00017534,2]
[358943953,1745575853165,-151.0,0.00017534,2]
[358943954,1745575853174,-314.85726284,0.00017534,2]
[358943955,1745575853183,-1160.85,0.00017534,2]
[358943956,1745575853192,-887.68,0.00017534,2]
[358943957,1745575853202,-1603.05,0.00017534,2]
[358943958,1745575853211,-500.0,0.00017534,2]
[358943959,1745575853220,-1498.26,0.00017534,2]
[358943960,1745575853231,-219.697223,0.00017534,2]
[358943961,1745575853241,-500.0,0.00017534,2]
[358943962,1745575853251,-733.48,0.00017534,2]
[358943963,1745575853260,-690.76,0.00017534,2]
[358943964,1745575853269,-629.76,0.00017534,2]
[358943965,1745575853278,-616.87398172,0.00017534,2]
[358943966,1745575853289,-634.61,0.00017534,2]
[358943967,1745575853298,-926.54,0.00017534,2]
[358943968,1745575853307,-767.11,0.00017534,2]
[358943969,1745575853318,-161.909001,0.00017534,2]
[358943970,1745575853327,-161.909001,0.00017534,2]
[358943971,1745575853338,-500.0,0.00017534,2]
[358943972,1745575853347,-500.0,0.00017534,2]
[358943973,1745575853358,-627.35,0.00017534,2]
[358943974,1745575853368,-3228.26,0.00017534,2]
[358943975,1745575853377,-500.0,0.00017534,2]
[358943976,1745575853387,-809.99,0.00017534,2]
[358943977,1745575853399,-500.0,0.00017534,2]
[358943978,1745575853409,-2894.59,0.00017534,2]
[358943979,1745575853418,-1122.88,0.00017534,2]
[358943980,1745575853427,-500.0,0.00017534,2]
[358943981,1745575853437,-500.0,0.00017534,2]
[358943982,1745575853446,-544.06,0.00017534,2]
[358943983,1745575853456,-1043.19,0.00017534,2]
[358943984,1745575853465,-1910.23,0.00017534,2]
[358943985,1745575853476,-500.0,0.00017534,2]
[358943986,1745575853485,-636.08,0.00017534,2]
[358943987,1745575853495,-500.0,0.00017534,2]
[358943988,1745575853504,-2500.0,0.00017568,2]
[358943989,1745575853514,-2932.39831184,0.00017693,2]
[358943990,1745575853524,-151.0,0.00017797,2]
[358943991,1745575853533,-215.0738,0.00017797,2]
[358943992,1745575853542,-187.31935539,0.000178,3]
[358943993,1745575853551,-151.0,0.000178,2]
[358943994,1745575853560,-151.0,0.00017808,2]
[358943995,1745575853571,-582.56,0.00017808,2]
[358943996,1745575853581,-513.83,0.00017808,2]
[358943997,1745575853592,-151.0,0.00017808,2]
[358943998,1745575853602,-568.3,0.00017808,2]
[358943999,1745575853611,-500.0,0.00017808,2]
[358944000,1745575853620,-508.67,0.00017808,2]
[358944001,1745575853629,-503.55,0.00017808,2]
[358944002,1745575853639,-532.52,0.00017808,2]
[358944003,1745575853648,-639.6,0.00017808,2]
[358944004,1745575853657,-500.0,0.00017808,2]
[358944005,1745575853667,-554.63,0.00017808,2]
[358944006,1745575853676,-643.11,0.00017808,2]
[358944007,1745575853686,-1042.26,0.00017808,2]
[358944008,1745575853698,-500.0,0.00017808,2]
[358944009,1745575853708,-733.9,0.00017808,2]
[358944010,1745575853719,-500.0,0.00017808,2]
[358944011,1745575853728,-841.7,0.00017808,2]
[358944012,1745575853738,-1415.79,0.00017808,2]
[358944013,1745575853749,-500.0,0.00017808,2]
[358944014,1745575853758,-3702.83,0.00017808,2]
[358944015,1745575853767,-572.24,0.00017808,2]
[358944016,1745575853777,-3273.42,0.00017808,2]
[358944017,1745575853786,-1019.41,0.00017808,2]
[358944018,1745575853796,-284.9,0.00017808,2]
[358944019,1745575853806,-500.0,0.00017808,2]
[358944020,1745575853815,-746.25,0.00017808,2]
[358944021,1745575853825,-622.31,0.00017808,2]
[358944022,1745575853834,-685.53,0.00017808,2]
[358944023,1745575853843,-500.0,0.00017808,2]
[358944024,1745575853853,-1388.5,0.00017808,2]
[358944025,1745575853862,-1160.85,0.00017808,2]
[358944026,1745575853871,-887.68,0.00017808,2]
[358944027,1745575853881,-1603.05,0.00017808,2]
[358944028,1745575853890,-503.61,0.00017808,2]
[358944029,1745575853899,-1498.26,0.00017808,2]
[358944030,1745575853909,-624.35501556,0.00017808,2]
[358944031,1745575853919,-733.48,0.00017808,2]
[358944032,1745575853933,-690.76,0.00017808,2]
[358944033,1745575853942,-629.76,0.00017808,2]
[358944034,1745575853951,-634.61,0.00017808,2]
[358944035,1745575853961,-926.54,0.00017808,2]
[358944036,1745575853971,-767.11,0.00017808,2]
[358944037,1745575853980,-500.0,0.00017808,2]
[358944038,1745575853990,-500.0,0.00017808,2]
[358944039,1745575853999,-627.35,0.00017808,2]
[358944040,1745575854010,-3228.26,0.00017808,2]
[358944041,1745575854019,-533.1043599,0.00017808,2]
[358944042,1745575854029,-809.99,0.00017808,2]
[358944043,1745575854038,-261.72305232,0.00017808,2]
[358944044,1745575854047,-2894.59,0.00017808,2]
[358944045,1745575854056,-1122.88,0.00017808,2]
[358944046,1745575854066,-500.0,0.00017808,2]
[358944047,1745575854075,-500.0,0.00017808,2]
[358944048,1745575854084,-544.06,0.00017808,2]
[358944049,1745575854094,-1043.19,0.00017808,2]
[358944050,1745575854103,-1910.23,0.00017808,2]
[358944051,1745575854112,-500.0,0.00017808,2]
[358944052,1745575854121,-636.08,0.00017808,2]
[358944053,1745575854130,-500.0,0.00017808,2]
[358944054,1745575854139,-576.1505603,0.00017808,2]
[358944055,1745575854150,-320.0609487,0.00017808,2]
[358944056,1745575854159,-153.0,0.00017808,2]
[358944057,1745575854168,-3000.0,0.00017842,2]
[358944058,1745575854177,-151.0,0.000179,2]
[358944059,1745575854187,-500.0,0.0001798,2]
[358944060,1745575854196,-126530.92755894,0.00018,2]
[358944061,1745575854357,-7102.89625729,0.00018,2]
[358944062,1745575854369,-6065.3470898,0.00018,2]
[358944063,1745575854381,-8471.78672695,0.00018,2]
[358944064,1745575854394,-33470.49964011,0.00018,2]
[358944065,1745575854413,-194.017614,0.0001726,2]
[358944066,1745575854422,-224.57272941,0.00018,2]
[358944067,1745575854573,-194.017614,0.00017534,2]
[358944068,1745575854582,-159427.61552529,0.00018,2]
[358944069,1745575854591,-153806.42709785,0.00018,2]
[358944070,1745575854600,-28898.32267997,0.00018,2]
[358944071,1745575854609,-1318.63981359,0.00018,2]
[358944072,1745575854618,-151.0,0.00018,2]
[358944073,1745575854627,-151.0,0.00018,2]
[358944074,1745575854636,-151.0,0.00018,2]
[358944075,1745575854646,-170.50875,0.00018,2]
[358944076,1745575854655,-151.0,0.00018,2]
[358944077,1745575854663,-151.0,0.00018,2]
[358944078,1745575854674,-151.0,0.00018,2]
[358944079,1745575854683,-179.496163,0.00018,2]
[358944080,1745575854692,-151.0,0.00018,2]
[358944081,1745575854701,-151.0,0.00018,2]
[358944082,1745575854710,-151.0,0.00018,2]
[358944083,1745575854719,-151.0,0.00018,2]
[358944084,1745575854729,-151.0,0.00018,2]
[358944085,1745575854738,-151.0,0.00018,2]
[358944086,1745575854750,-151.0,0.00018,2]
[358944087,1745575854760,-151.0,0.00018,2]
[358944088,1745575854770,-151.0,0.00018,2]
[358944089,1745575854780,-399.015285,0.00018,2]
[358944090,1745575854789,-399.015285,0.00018,2]
[358944091,1745575854799,-399.015285,0.00018,2]
[358944092,1745575854810,-399.015285,0.00018,2]
[358944093,1745575854819,-151.0,0.00018,2]
[358944094,1745575854828,-187.989872,0.00018,2]
[358944095,1745575854838,-187.989872,0.00018,2]
[358944096,1745575854847,-187.989872,0.00018,2]
[358944097,1745575854856,-187.989872,0.00018,2]
[358944098,1745575854865,-151.0,0.00018,2]
[358944099,1745575854874,-151.0,0.00018,2]
[358944100,1745575854995,-220.062228,0.00018,2]
[358944101,1745575855005,-151.0,0.00018,2]
[358944102,1745575855015,-151.0,0.00018,2]
[358944103,1745575855025,-151.0,0.00018,2]
[358944104,1745575855034,-151.0,0.00018,2]
[358944105,1745575855044,-151.0,0.00018,2]
[358944106,1745575855054,-151.0,0.00018,2]
[358944107,1745575855063,-151.0,0.00018,2]
[358944108,1745575855073,-151.0,0.00018,2]
[358944109,1745575855082,-155.412663,0.00018,2]
[358944110,1745575855092,-153.169958,0.00018,2]
[358944111,1745575855101,-153.169958,0.00018,2]
[358944112,1745575855111,-153.169958,0.00018,2]
[358944113,1745575855120,-153.169958,0.00018,2]
[358944114,1745575855129,-151.0,0.00018,2]
[358944115,1745575855138,-151.0,0.00018,2]
[358944116,1745575855148,-169.923029,0.00018,2]
[358944117,1745575855157,-169.923029,0.00018,2]
[358944118,1745575855166,-169.923029,0.00018,2]
[358944119,1745575855177,-169.923029,0.00018,2]
[358944120,1745575855188,-267.34928,0.00018,2]
[358944121,1745575855199,-198.011623,0.00018,2]
[358944122,1745575855209,-198.011623,0.00018,2]
[358944123,1745575855219,-198.011623,0.00018,2]
[358944124,1745575855229,-198.011623,0.00018,2]
[358944125,1745575855238,-905.532784,0.00018,2]
[358944126,1745575855248,-905.532784,0.00018,2]
[358944127,1745575855257,-905.532784,0.00018,2]
[358944128,1745575855266,-905.532784,0.00018,2]
[358944129,1745575855275,-151.0,0.00018,2]
[358944130,1745575855284,-161.909001,0.00018,2]
[358944131,1745575855293,-161.909001,0.00018,2]
[358944132,1745575855303,-161.909001,0.00018,2]
[358944133,1745575855313,-161.909001,0.00018,2]
[358944134,1745575855322,-194.017614,0.00018,2]
[358944135,1745575855331,-194.017614,0.00018,2]
[358944136,1745575855340,-151.0,0.00018022,2]
[358944137,1745575855349,-151.0,0.00018022,2]
[358944138,1745575855358,-151.0,0.00018022,2]
[358944139,1745575855368,-399.015285,0.00018022,2]
[358944140,1745575855378,-399.015285,0.00018022,2]
[358944141,1745575855387,-151.0,0.00018022,2]
[358944142,1745575855396,-187.989872,0.00018022,2]
[358944143,1745575855405,-187.989872,0.00018022,2]
[358944144,1745575855414,-269.719711,0.00018022,2]
[358944145,1745575855424,-151.0,0.00018022,2]
[358944146,1745575855435,-151.0,0.00018022,2]
[358944147,1745575855444,-151.0,0.00018022,2]
[358944148,1745575855454,-153.169958,0.00018022,2]
[358944149,1745575855466,-153.169958,0.00018022,2]
[358944150,1745575855476,-169.923029,0.00018022,2]
[358944151,1745575855487,-169.923029,0.00018022,2]
[358944152,1745575855497,-198.011623,0.00018022,2]
[358944153,1745575855506,-198.011623,0.00018022,2]
[358944154,1745575855516,-151.0,0.00018082,2]
[358944155,1745575855526,-151.0,0.00018082,2]
[358944156,1745575855536,-151.0,0.00018082,2]
[358944157,1745575855545,-582.56,0.00018082,2]
[358944158,1745575855554,-513.83,0.00018082,2]
[358944159,1745575855563,-568.3,0.00018082,2]
[358944160,1745575855572,-500.0,0.00018082,2]
[358944161,1745575855582,-508.67,0.00018082,2]
[358944162,1745575855591,-503.55,0.00018082,2]
[358944163,1745575855600,-532.52,0.00018082,2]
[358944164,1745575855609,-639.6,0.00018082,2]
[358944165,1745575855618,-500.0,0.00018082,2]
[358944166,1745575855627,-554.63,0.00018082,2]
[358944167,1745575855637,-643.11,0.00018082,2]
[358944168,1745575855646,-1042.26,0.00018082,2]
[358944169,1745575855655,-500.0,0.00018082,2]
[358944170,1745575855664,-733.9,0.00018082,2]
[358944171,1745575855673,-500.0,0.00018082,2]
[358944172,1745575855683,-841.7,0.00018082,2]
[358944173,1745575855692,-1415.79,0.00018082,2]
[358944174,1745575855700,-570.24,0.00018082,2]
[358944175,1745575855710,-3702.83,0.00018082,2]
[358944176,1745575855719,-572.24,0.00018082,2]
[358944177,1745575855728,-3273.42,0.00018082,2]
[358944178,1745575855738,-905.532784,0.00018082,2]
[358944179,1745575855748,-905.532784,0.00018082,2]
[358944180,1745575855757,-1019.41,0.00018082,2]
[358944181,1745575855766,-500.0,0.00018082,2]
[358944182,1745575855775,-746.25,0.00018082,2]
[358944183,1745575855784,-622.31,0.00018082,2]
[358944184,1745575855794,-685.53,0.00018082,2]
[358944185,1745575855803,-500.0,0.00018082,2]
[358944186,1745575855813,-1388.5,0.00018082,2]
[358944187,1745575855822,-1160.85,0.00018082,2]
[358944188,1745575855832,-887.68,0.00018082,2]
[358944189,1745575855841,-1603.05,0.00018082,2]
[358944190,1745575855851,-1498.26,0.00018082,2]
[358944191,1745575855862,-733.48,0.00018082,2]
[358944192,1745575855872,-690.76,0.00018082,2]
[358944193,1745575855882,-629.76,0.00018082,2]
[358944194,1745575855891,-634.61,0.00018082,2]
[358944195,1745575855902,-926.54,0.00018082,2]
[358944196,1745575855919,-767.11,0.00018082,2]
[358944197,1745575855941,-161.909001,0.00018082,2]
[358944198,1745575855955,-500.0,0.00018082,2]
[358944199,1745575855970,-161.909001,0.00018082,2]
[358944200,1745575855985,-500.0,0.00018082,2]
[358944201,1745575856001,-627.35,0.00018082,2]
[358944202,1745575856017,-3228.26,0.00018082,2]
[358944203,1745575856033,-809.99,0.00018082,2]
[358944204,1745575856048,-2894.59,0.00018082,2]
[358944205,1745575856062,-1122.88,0.00018082,2]
[358944206,1745575856077,-500.0,0.00018082,2]
[358944207,1745575856091,-427.59361313,0.00018082,2]
[358944208,1745575856105,-544.06,0.00018082,2]
[358944209,1745575856116,-1043.19,0.00018082,2]
[358944210,1745575856131,-1910.23,0.00018082,2]
[358944211,1745575856145,-445.87324617,0.00018082,2]
[358944212,1745575856161,-636.08,0.00018082,2]
[358944213,1745575856176,-500.0,0.00018082,2]
[358944214,1745575856191,-194.017614,0.00018082,2]
[358944215,1745575856207,-151.0,0.000181,2]
[358944216,1745575856218,-3500.0,0.00018116,2]
[358944217,1745575856229,-151.0,0.000182,2]
[358944218,1745575856243,-10164.38642389,0.00018314,2]
[358944219,1745575856259,-1032.18546888,0.00018314,2]
[358944220,1745575856271,-151.0,0.00018355,2]
[358944221,1745575856285,-151.0,0.00018355,2]
[358944222,1745575856299,-151.0,0.00018355,2]
[358944223,1745575856310,-151.0,0.00018356,2]
[358944224,1745575856321,-582.56,0.00018356,2]
[358944225,1745575856333,-151.0,0.00018356,2]
[358944226,1745575856346,-513.83,0.00018356,2]
[358944227,1745575856359,-295.006661,0.00018356,2]
[358944228,1745575856372,-399.015285,0.00018356,2]
[358944229,1745575856384,-399.015285,0.00018356,2]
[358944230,1745575856396,-151.0,0.00018356,2]
[358944231,1745575856408,-187.989872,0.00018356,2]
[358944232,1745575856421,-187.989872,0.00018356,2]
[358944233,1745575856433,-262.411177,0.00018356,2]
[358944234,1745575856445,-568.3,0.00018356,2]
[358944235,1745575856457,-151.0,0.00018356,2]
[358944236,1745575856470,-500.0,0.00018356,2]
[358944237,1745575856483,-153.169958,0.00018356,2]
[358944238,1745575856494,-153.169958,0.00018356,2]
[358944239,1745575856506,-508.67,0.00018356,2]
[358944240,1745575856518,-503.55,0.00018356,2]
[358944241,1745575856530,-169.923029,0.00018356,2]
[358944242,1745575856542,-169.923029,0.00018356,2]
[358944243,1745575856554,-532.52,0.00018356,2]
[358944244,1745575856566,-639.6,0.00018356,2]
[358944245,1745575856578,-500.0,0.00018356,2]
[358944246,1745575856590,-554.63,0.00018356,2]
[358944247,1745575856602,-643.11,0.00018356,2]
[358944248,1745575856614,-1042.26,0.00018356,2]
[358944249,1745575856626,-500.0,0.00018356,2]
[358944250,1745575856637,-733.9,0.00018356,2]
[358944251,1745575856651,-500.0,0.00018356,2]
[358944252,1745575856663,-841.7,0.00018356,2]
[358944253,1745575856675,-1415.79,0.00018356,2]
[358944254,1745575856688,-198.011623,0.00018356,2]
[358944255,1745575856700,-198.011623,0.00018356,2]
[358944256,1745575856713,-3702.83,0.00018356,2]
[358944257,1745575856722,-572.24,0.00018356,2]
[358944258,1745575856731,-3273.42,0.00018356,2]
[358944259,1745575856741,-1019.41,0.00018356,2]
[358944260,1745575856751,-500.0,0.00018356,2]
[358944261,1745575856760,-746.25,0.00018356,2]
[358944262,1745575856770,-622.31,0.00018356,2]
[358944263,1745575856779,-685.53,0.00018356,2]
[358944264,1745575856789,-500.0,0.00018356,2]
[358944265,1745575856802,-1388.5,0.00018356,2]
[358944266,1745575856812,-1160.85,0.00018356,2]
[358944267,1745575856822,-887.68,0.00018356,2]
[358944268,1745575856832,-1603.05,0.00018356,2]
[358944269,1745575856841,-1498.26,0.00018356,2]
[358944270,1745575856851,-733.48,0.00018356,2]
[358944271,1745575856860,-690.76,0.00018356,2]
[358944272,1745575856870,-629.76,0.00018356,2]
[358944273,1745575856879,-634.61,0.00018356,2]
[358944274,1745575856889,-926.54,0.00018356,2]
[358944275,1745575856899,-767.11,0.00018356,2]
[358944276,1745575856908,-500.0,0.00018356,2]
[358944277,1745575856917,-500.0,0.00018356,2]
[358944278,1745575856932,-627.35,0.00018356,2]
[358944279,1745575856942,-3228.26,0.00018356,2]
[358944280,1745575856951,-809.99,0.00018356,2]
[358944281,1745575856962,-2894.59,0.00018356,2]
[358944282,1745575856972,-1122.88,0.00018356,2]
[358944283,1745575856981,-500.0,0.00018356,2]
[358944284,1745575856990,-544.06,0.00018356,2]
[358944285,1745575857000,-1043.19,0.00018356,2]
[358944286,1745575857009,-1910.23,0.00018356,2]
[358944287,1745575857019,-636.08,0.00018356,2]
[358944288,1745575857028,-500.0,0.00018356,2]
[358944289,1745575857037,-2533.82126862,0.0001839,2]
[358944290,1745575857291,-568.88431023,0.0001839,2]
[358944291,1745575857304,-146.65015847,0.000184,2]
[358944292,1745575857316,-53.34984153,0.000184,2]
[358944293,1745575857325,-2932.39831184,0.00018486,2]
[358944294,1745575857335,-102.36973805,0.000185,2]
[358944295,1745575857346,-373.89531288,0.000185,2]
[358944296,1745575857357,-23.73494907,0.000185,2]
[358944297,1745575857366,-151.0,0.0001863,2]
[358944298,1745575857375,-151.0,0.0001863,2]
[358944299,1745575857385,-582.56,0.0001863,2]
[358944300,1745575857394,-513.83,0.0001863,2]
[358944301,1745575857403,-568.3,0.0001863,2]
[358944302,1745575857412,-500.0,0.0001863,2]
[358944303,1745575857421,-153.169958,0.0001863,2]
[358944304,1745575857431,-153.169958,0.0001863,2]
[358944305,1745575857440,-508.67,0.0001863,2]
[358944306,1745575857449,-503.55,0.0001863,2]
[358944307,1745575857458,-169.923029,0.0001863,2]
[358944308,1745575857467,-169.923029,0.0001863,2]
[358944309,1745575857476,-532.52,0.0001863,2]
[358944310,1745575857486,-639.6,0.0001863,2]
[358944311,1745575857495,-178.40244414,0.0001863,2]
[358944312,1745575857503,-220.64665279,0.0001863,2]
[358944313,1745575857670,-218.03348655,0.00015579,2]
[358944314,1745575857681,-194.017614,0.00016473,2]
[358944315,1745575857691,-2113.410251,0.00016473,2]
[358944316,1745575857701,-194.017614,0.00016712,2]
[358944317,1745575857710,-194.017614,0.00016712,2]
[358944318,1745575857719,-2113.410251,0.00016712,2]
[358944319,1745575857729,-2113.410251,0.00016712,2]
[358944320,1745575857738,-194.017614,0.00016886,2]
[358944321,1745575857747,-194.017614,0.0001726,2]
[358944322,1745575857756,-194.017614,0.00017534,2]
[358944323,1745575857766,-333.98334721,0.0001863,2]
[358944324,1745575857775,-643.11,0.0001863,2]
[358944325,1745575857784,-1042.26,0.0001863,2]
[358944326,1745575857793,-500.0,0.0001863,2]
[358944327,1745575857802,-733.9,0.0001863,2]
[358944328,1745575857811,-500.0,0.0001863,2]
[358944329,1745575857821,-841.7,0.0001863,2]
[358944330,1745575857831,-1415.79,0.0001863,2]
[358944331,1745575857840,-198.011623,0.0001863,2]
[358944332,1745575857849,-198.011623,0.0001863,2]
[358944333,1745575857859,-3702.83,0.0001863,2]
[358944334,1745575857868,-572.24,0.0001863,2]
[358944335,1745575857877,-3273.42,0.0001863,2]
[358944336,1745575857887,-905.532784,0.0001863,2]
[358944337,1745575857896,-905.532784,0.0001863,2]
[358944338,1745575857906,-1019.41,0.0001863,2]
[358944339,1745575857916,-746.25,0.0001863,2]
[358944340,1745575857927,-622.31,0.0001863,2]
[358944341,1745575857936,-685.53,0.0001863,2]
[358944342,1745575857945,-500.0,0.0001863,2]
[358944343,1745575857955,-1388.5,0.0001863,2]
[358944344,1745575857964,-1160.85,0.0001863,2]
[358944345,1745575857973,-887.68,0.0001863,2]
[358944346,1745575857982,-1603.05,0.0001863,2]
[358944347,1745575857991,-1498.26,0.0001863,2]
[358944348,1745575858002,-733.48,0.0001863,2]
[358944349,1745575858011,-690.76,0.0001863,2]
[358944350,1745575858021,-629.76,0.0001863,2]
[358944351,1745575858030,-634.61,0.0001863,2]
[358944352,1745575858039,-926.54,0.0001863,2]
[358944353,1745575858048,-767.11,0.0001863,2]
[358944354,1745575858057,-161.909001,0.0001863,2]
[358944355,1745575858066,-500.0,0.0001863,2]
[358944356,1745575858075,-161.909001,0.0001863,2]
[358944357,1745575858084,-500.0,0.0001863,2]
[358944358,1745575858093,-627.35,0.0001863,2]
[358944359,1745575858102,-3228.26,0.0001863,2]
[358944360,1745575858111,-809.99,0.0001863,2]
[358944361,1745575858121,-2894.59,0.0001863,2]
[358944362,1745575858130,-1122.88,0.0001863,2]
[358944363,1745575858139,-284.85,0.0001863,2]
[358944364,1745575858148,-544.06,0.0001863,2]
[358944365,1745575858158,-1043.19,0.0001863,2]
[358944366,1745575858168,-1910.23,0.0001863,2]
[358944367,1745575858178,-636.08,0.0001863,2]
[358944368,1745575858187,-500.0,0.0001863,2]
[358944369,1745575858196,-194.017614,0.0001863,2]
[358944370,1745575858205,-587.0,0.00018752,2]
[358944371,1745575858215,-587.0,0.00018752,2]
[358944372,1745575858223,-151.0,0.00018835,2]
[358944373,1745575858232,-151.0,0.00018876,2]
[358944374,1745575858241,-26979.18852572,0.000189,2]
[358944375,1745575858253,-14930.7426238,0.000189,2]
[358944376,1745575858265,-5296.55496206,0.000189,2]
[358944377,1745575858276,-34684.24185645,0.000189,2]
[358944378,1745575858295,-2312.897314,0.000189,2]
[358944379,1745575858388,-2113.410251,0.00016886,2]
[358944380,1745575858397,-2113.410251,0.0001726,2]
[358944381,1745575858406,-2113.410251,0.00017534,2]
[358944382,1745575858416,-194.017614,0.00018,2]
[358944383,1745575858425,-194.017614,0.00018,2]
[358944384,1745575858435,-2113.410251,0.00018,2]
[358944385,1745575858444,-2113.410251,0.00018,2]
[358944386,1745575858454,-194.017614,0.00018082,2]
[358944387,1745575858463,-2113.410251,0.00018082,2]
[358944388,1745575858472,-194.017614,0.0001863,2]
[358944389,1745575858481,-2113.410251,0.0001863,2]
[358944390,1745575858491,-9119.057787,0.000189,2]
[358944391,1745575858502,-800.067811,0.000189,2]
[358944392,1745575858513,-656.9768466,0.000189,2]
[358944426,1745576760721,187.290118,0.00014572,2]
[358944430,1745576838160,-261.0,0.00015041,2]
[358944431,1745576838182,-66.1960002,0.00015042,2]
[358944432,1745576842119,-433.8039998,0.00015042,2]
[358944433,1745576842140,-82.7665612,0.00015042,2]
[358944434,1745576845091,-133.17814994,0.00015042,2]
[358944435,1745576845128,-334.70887316,0.00015042,2]
[358944438,1745576945138,-490.2548,0.00015041,2]
[358944439,1745576946601,1270.55496274,0.00014941,2]
[358944440,1745576953935,739.322866,0.00025,30]
[358944441,1745576963163,-9.7452,0.00015041,2]
[358944442,1745576963184,-477.10720593,0.00015041,2]
[358944443,1745576963205,-418.03311107,0.00015041,2]
[358944444,1745576963234,-500.0,0.00015041,2]
[358944445,1745576963255,-500.0,0.00015041,2]
[358944446,1745576963276,-500.0,0.00015041,2]
[358944447,1745576963298,-500.0,0.00015041,2]
[358944448,1745576963324,-500.0,0.00015041,2]
[358944449,1745576963345,-500.0,0.00015041,2]
[358944450,1745576963368,-500.0,0.00015041,2]
[358944451,1745576963395,-500.0,0.00015041,2]
[358944452,1745576963416,-500.0,0.00015041,2]
[358944453,1745576963443,-500.0,0.00015041,2]
[358944454,1745576963464,-500.0,0.00015041,2]